[Event "55th Rubinstein Memorial-A 2019"]
[Site "Polanica-Zdroj"]
[Date "2019.08.21"]
[Round "5.19"]
[White "Rogacewicz, Mikolaj"]
[Black "Wloch, Mikolaj"]
[Result "1-0"]
[ECO "D11"]
[WhiteElo "1925"]
[BlackElo "1771"]
[Annotator "NA"]
[PlyCount "79"]
[EventDate "2019.08.17"]
[EventType "swiss"]
[EventCountry "POL"]
[SourceTitle "playchess.com"]
[Source "ChessBase"]
[SourceQuality "1"]
[TimeControl "40/5400+30:1800+30"]

1. d4 {[%emt 0:00:00]} d5 {[%emt 0:00:00]} 2. c4 {[%emt 0:00:00]} c6 {[%emt 0:00:00]} 3. Nf3 {[%emt 0:00:00]} Nf6 {[%emt 0:00:00]} 4. e3 {[%emt 0:00:00]} e6 {[%emt 0:00:00]} 5. b3 {[%emt 0:00:00]} Bd6 {[%emt 0:01:00]} 6. Bb2 {[%emt 0:00:52]} O-O {[%emt 0:04:09]} 7. Bd3 {[%emt 0:00:37]} dxc4 {[%emt 0:00:16]} 8. bxc4 {[%emt 0:01:38]} Nbd7 {[%emt 0:05:43]} 9. O-O {[%emt 0:00:49]} Re8 {[%emt 0:03:53]} 10. Ne5 {[%emt 0:02:20]} c5 {[%emt 0:05:33]} 11. Nd2 {[%emt 0:10:43]} Qc7 {[%emt 0:02:29]} 12. Ndf3 {[%emt 0:03:53]} h6 {[%emt 0:06:14]} 13. a4 {[%emt 0:18:20]} b6 {[%emt 0:03:57]} 14. a5 {[%emt 0:02:26]} Bb7 {[%emt 0:02:14]} 15. h3 {[%emt 0:07:22]} Rad8 {[%emt 0:12:11]} 16. Qc2 {[%emt 0:04:25]} Bxf3 {[%emt 0:05:43]} 17. Nxf3 {[%emt 0:03:32]} e5 {[%emt 0:00:20]} 18. axb6 {[%emt 0:01:16]} axb6 {[%emt 0:00:05]} 19. dxe5 {[%emt 0:02:22]} Nxe5 {[%emt 0:00:05]} 20. Be2 {[%emt 0:00:33]} Nfd7 {[%emt 0:03:13]} 21. Ra4 {[%emt 0:03:20]} Nc6 {[%emt 0:02:59]} 22. Bc3 {[%emt 0:05:18]} Nde5 {[%emt 0:05:46]} 23. Rfa1 {[%emt 0:03:59]} Qe7 {[%emt 0:02:28]} 24. Qb2 {[%emt 0:02:40]} Bc7 {[%emt 0:02:24]} 25. Ne1 {[%emt 0:10:10]} Qe6 {[%emt 0:06:28]} 26. Nf3 {[%emt 0:02:12]} Qd6 {[%emt 0:01:50]} 27. g3 {[%emt 0:02:55]} Qg6 {[%emt 0:03:43]} 28. Nh4 {[%emt 0:02:37]} Qe6 {[%emt 0:01:27]} 29. Kg2 {[%emt 0:01:31]} f6 {[%emt 0:04:36]} 30. Qc2 {[%emt 0:01:28]} Ne7 {[%emt 0:01:40]} 31. Nf3 {[%emt 0:02:10]} N7c6 {[%emt 0:02:12]} 32. Rb1 {[%emt 0:01:01]} Re7 {[%emt 0:05:22]} 33. Nh4 {[%emt 0:00:42]} Red7 {[%emt 0:01:25]} 34. Qf5 {[%emt 0:01:55]} Qe7 {[%emt 0:02:45]} 35. Qe4 {[%emt 0:01:13]} Qf7 {[%emt 0:02:06]} 36. f4 {[%emt 0:00:39]} Nd3 {[%emt 0:00:15]} 37. Qxc6 {[%emt 0:00:29]} g5 {[%emt 0:00:47]} 38. Nf5 {[%emt 0:00:58]} Qg6 {[%emt 0:01:43]} 39. Bxd3 {[%emt 0:00:47]} Rxd3 {[%emt 0:00:13]} 40. Ne7+ {[%emt 0:00:00]} 1-0

[Event "55th Rubinstein Memorial-A 2019"]
[Site "Polanica-Zdroj"]
[Date "2019.08.21"]
[Round "5.20"]
[White "Siekanska, Maria"]
[Black "Szczurek, Krzysztof"]
[Result "0-1"]
[ECO "E95"]
[WhiteElo "1677"]
[BlackElo "2112"]
[Annotator "NA"]
[PlyCount "72"]
[EventDate "2019.08.17"]
[EventType "swiss"]
[EventCountry "POL"]
[SourceTitle "playchess.com"]
[Source "ChessBase"]
[SourceQuality "1"]
[TimeControl "40/5400+30:1800+30"]

1. d4 {[%emt 0:00:00]} Nf6 {[%emt 0:00:00]} 2. c4 {[%emt 0:00:00]} g6 {[%emt 0:00:00]} 3. Nc3 {[%emt 0:00:00]} Bg7 {[%emt 0:00:00]} 4. e4 {[%emt 0:00:00]} d6 {[%emt 0:00:00]} 5. Nf3 {[%emt 0:00:00]} O-O {[%emt 0:00:00]} 6. Be2 {[%emt 0:00:06]} Nbd7 {[%emt 0:00:03]} 7. O-O {[%emt 0:00:19]} e5 {[%emt 0:00:06]} 8. Re1 {[%emt 0:00:29]} c6 {[%emt 0:00:13]} 9. Bf1 {[%emt 0:00:19]} Qe7 {[%emt 0:00:13]} 10. d5 {[%emt 0:01:03]} c5 {[%emt 0:00:07]} 11. Rb1 {[%emt 0:04:32]} h6 {[%emt 0:01:42]} 12. b4 {[%emt 0:02:56]} Nh7 {[%emt 0:01:06]} 13. Be3 {[%emt 0:01:40]} cxb4 {[%emt 0:01:26]} 14. Rxb4 {[%emt 0:07:48]} f5 {[%emt 0:09:17]} 15. Nb5 {[%emt 0:14:56]} fxe4 {[%emt 0:11:43]} 16. Nd2 {[%emt 0:00:16]} Nc5 {[%emt 0:00:05]} 17. Bxc5 {[%emt 0:02:06]} dxc5 {[%emt 0:00:05]} 18. Rb2 {[%emt 0:02:44]} Nf6 {[%emt 0:10:51]} 19. Nc3 {[%emt 0:01:35]} Bf5 {[%emt 0:03:33]} 20. g3 {[%emt 0:13:39]} e3 {[%emt 0:03:19]} 21. Rxe3 {[%emt 0:01:12]} Ng4 {[%emt 0:01:22]} 22. Nde4 {[%emt 0:06:41]} Nxe3 {[%emt 0:00:58]} 23. fxe3 {[%emt 0:00:01]} b6 {[%emt 0:00:57]} 24. Bg2 {[%emt 0:00:39]} Rad8 {[%emt 0:00:43]} 25. Qe1 {[%emt 0:01:36]} h5 {[%emt 0:05:42]} 26. h3 {[%emt 0:01:06]} Bh6 {[%emt 0:07:37]} 27. Re2 {[%emt 0:03:49]} Kh8 {[%emt 0:02:20]} 28. Qd1 {[%emt 0:02:38]} Rf7 {[%emt 0:01:54]} 29. Qe1 {[%emt 0:00:29]} g5 {[%emt 0:05:55]} 30. Qd1 {[%emt 0:01:26]} Rff8 {[%emt 0:01:22]} 31. Qe1 {[%emt 0:00:16]} Bg6 {[%emt 0:01:52]} 32. Qd1 {[%emt 0:01:11]} Qh7 {[%emt 0:00:26]} 33. Qe1 {[%emt 0:01:40]} Rf7 {[%emt 0:01:11]} 34. Qd1 {[%emt 0:01:07]} g4 {[%emt 0:00:30]} 35. h4 {[%emt 0:00:11]} Rf3 {[%emt 0:02:05]} 36. Bxf3 {[%emt 0:05:02]} gxf3 {[%emt 0:00:13]} 0-1

[Event "55th Rubinstein Memorial-A 2019"]
[Site "Polanica-Zdroj"]
[Date "2019.08.21"]
[Round "5.21"]
[White "Galuszka, Kamil"]
[Black "Adamczyk, Zuzanna"]
[Result "1/2-1/2"]
[ECO "B20"]
[WhiteElo "2058"]
[BlackElo "1911"]
[Annotator "NA"]
[PlyCount "101"]
[EventDate "2019.08.17"]
[EventType "swiss"]
[EventCountry "POL"]
[SourceTitle "playchess.com"]
[Source "ChessBase"]
[SourceQuality "1"]
[TimeControl "40/5400+30:1800+30"]

1. e4 {[%emt 0:00:00]} c5 {[%emt 0:00:00]} 2. Qe2 {[%emt 0:00:00]} Nc6 {[%emt 0:00:29]} 3. Nf3 {[%emt 0:00:00]} e6 {[%emt 0:03:19]} 4. g3 {[%emt 0:01:43]} g6 {[%emt 0:01:10]} 5. Bg2 {[%emt 0:00:08]} Bg7 {[%emt 0:00:25]} 6. O-O {[%emt 0:00:08]} Nge7 {[%emt 0:00:36]} 7. e5 {[%emt 0:03:08]} d6 {[%emt 0:04:34]} 8. exd6 {[%emt 0:01:50]} Qxd6 {[%emt 0:01:25]} 9. Nc3 {[%emt 0:00:57]} b6 {[%emt 0:09:43]} 10. Rd1 {[%emt 0:21:20]} a6 {[%emt 0:07:18]} 11. d4 {[%emt 0:13:21]} cxd4 {[%emt 0:04:50]} 12. Ne4 {[%emt 0:00:06]} Qd7 {[%emt 0:10:07]} 13. c3 {[%emt 0:04:14]} O-O {[%emt 0:04:01]} 14. cxd4 {[%emt 0:10:16]} Bb7 {[%emt 0:05:11]} 15. Be3 {[%emt 0:06:25]} Nd5 {[%emt 0:07:00]} 16. Nc3 {[%emt 0:00:07]} Nce7 {[%emt 0:03:30]} 17. Rac1 {[%emt 0:02:28]} Rfd8 {[%emt 0:03:21]} 18. Bg5 {[%emt 0:02:38]} f6 {[%emt 0:08:32]} 19. Bd2 {[%emt 0:00:09]} Bc6 {[%emt 0:04:40]} 20. Re1 {[%emt 0:01:22]} Nxc3 {[%emt 0:09:49]} 21. bxc3 {[%emt 0:04:04]} Kf7 {[%emt 0:02:13]} 22. g4 {[%emt 0:03:37]} Rac8 {[%emt 0:01:58]} 23. g5 {[%emt 0:04:19]} f5 {[%emt 0:03:21]} 24. Bf4 {[%emt 0:07:49]} b5 {[%emt 0:01:43]} 25. Ne5+ {[%emt 0:05:02]} Bxe5 {[%emt 0:00:04]} 26. Qxe5 {[%emt 0:00:03]} Ng8 {[%emt 0:00:28]} 27. Qh8 {[%emt 0:01:08]} Kf8 {[%emt 0:00:48]} 28. Be5 {[%emt 0:00:59]} Bxg2 {[%emt 0:01:00]} 29. Kxg2 {[%emt 0:00:02]} Qd5+ {[%emt 0:00:56]} 30. Kg1 {[%emt 0:00:00]} Rd7 {[%emt 0:00:36]} 31. Re3 {[%emt 0:00:01]} Rf7 {[%emt 0:00:36]} 32. Rce1 {[%emt 0:00:16]} Re8 {[%emt 0:00:33]} 33. Rh3 {[%emt 0:00:09]} Qd7 {[%emt 0:00:21]} 34. Bf4 {[%emt 0:00:59]} Rg7 {[%emt 0:00:32]} 35. a3 {[%emt 0:02:14]} Ra8 {[%emt 0:00:35]} 36. Rhe3 {[%emt 0:00:44]} Re8 {[%emt 0:00:30]} 37. Re5 {[%emt 0:00:27]} Kf7 {[%emt 0:00:33]} 38. Rc5 {[%emt 0:00:17]} Ne7 {[%emt 0:00:31]} 39. Rc7 {[%emt 0:00:23]} Qd8 {[%emt 0:01:06]} 40. Qxe8+ {[%emt 0:00:00]} Qxe8 {[%emt 0:00:00]} 41. Bd6 {[%emt 0:01:07]} Kg8 {[%emt 0:10:11]} 42. Rxe6 {[%emt 0:01:24]} Qd8 {[%emt 0:06:31]} 43. Be5 {[%emt 0:02:01]} Rf7 {[%emt 0:01:00]} 44. Rb7 {[%emt 0:03:29]} Nc8 {[%emt 0:04:20]} 45. Rb8 {[%emt 0:00:05]} Qxg5+ {[%emt 0:00:58]} 46. Kf1 {[%emt 0:00:24]} Rf8 {[%emt 0:00:19]} 47. Rb7 {[%emt 0:00:20]} Qc1+ {[%emt 0:01:13]} 48. Kg2 {[%emt 0:00:06]} Qg5+ {[%emt 0:01:24]} 49. Kf1 {[%emt 0:01:43]} Qc1+ {[%emt 0:03:07]} 50. Kg2 {[%emt 0:00:08]} Qh6 51. Rc6 1/2-1/2

[Event "55th Rubinstein Memorial-A 2019"]
[Site "Polanica-Zdroj"]
[Date "2019.08.21"]
[Round "5.22"]
[White "Grochol, Kamil"]
[Black "Rosicki, Marcin"]
[Result "0-1"]
[ECO "A43"]
[WhiteElo "1837"]
[BlackElo "2042"]
[Annotator "NA"]
[PlyCount "70"]
[EventDate "2019.08.17"]
[EventType "swiss"]
[EventCountry "POL"]
[SourceTitle "playchess.com"]
[Source "ChessBase"]
[SourceQuality "1"]
[TimeControl "40/5400+30:1800+30"]

1. d4 {[%emt 0:00:00]} c5 {[%emt 0:03:52]} 2. c3 {[%emt 0:00:13]} e6 {[%emt 0:01:39]} 3. Nf3 {[%emt 0:04:39]} d5 {[%emt 0:04:03]} 4. Bf4 {[%emt 0:00:50]} Nc6 {[%emt 0:00:45]} 5. e3 {[%emt 0:00:31]} Nf6 {[%emt 0:00:04]} 6. Nbd2 {[%emt 0:00:50]} Be7 {[%emt 0:01:05]} 7. Ne5 {[%emt 0:01:57]} O-O {[%emt 0:00:48]} 8. Bd3 {[%emt 0:00:27]} Re8 {[%emt 0:00:59]} 9. h4 {[%emt 0:01:29]} Qb6 {[%emt 0:34:43]} 10. Rb1 {[%emt 0:04:35]} cxd4 {[%emt 0:04:13]} 11. exd4 {[%emt 0:03:08]} h5 {[%emt 0:08:51]} 12. Ndf3 {[%emt 0:37:39]} Nxe5 {[%emt 0:05:06]} 13. Nxe5 {[%emt 0:01:24]} Bd6 {[%emt 0:00:08]} 14. O-O {[%emt 0:09:21]} Ng4 {[%emt 0:13:21]} 15. Qf3 {[%emt 0:07:21]} Bxe5 {[%emt 0:07:28]} 16. Bxe5 {[%emt 0:01:24]} Bd7 {[%emt 0:01:53]} 17. Rfe1 {[%emt 0:00:54]} Bb5 {[%emt 0:02:16]} 18. Bc2 {[%emt 0:01:10]} Qd8 {[%emt 0:01:44]} 19. Qg3 {[%emt 0:04:45]} Kf8 {[%emt 0:01:16]} 20. Bd6+ {[%emt 0:05:25]} Kg8 {[%emt 0:00:05]} 21. f3 {[%emt 0:01:02]} Nh6 {[%emt 0:02:48]} 22. Be5 {[%emt 0:01:04]} f6 {[%emt 0:00:04]} 23. Bf4 {[%emt 0:00:07]} Nf5 {[%emt 0:00:04]} 24. Qg6 {[%emt 0:01:18]} Re7 {[%emt 0:01:16]} 25. g4 {[%emt 0:02:40]} Be8 {[%emt 0:00:06]} 26. Bxf5 {[%emt 0:00:56]} Bxg6 {[%emt 0:00:05]} 27. Bxg6 {[%emt 0:00:09]} hxg4 {[%emt 0:00:15]} 28. fxg4 {[%emt 0:00:02]} e5 {[%emt 0:00:45]} 29. dxe5 {[%emt 0:00:13]} fxe5 {[%emt 0:00:45]} 30. Bg5 {[%emt 0:05:54]} Qb6+ {[%emt 0:00:04]} 31. Kg2 {[%emt 0:00:17]} Qxg6 {[%emt 0:00:05]} 32. Bxe7 {[%emt 0:00:08]} Qxg4+ {[%emt 0:00:07]} 33. Kh2 {[%emt 0:00:20]} Re8 {[%emt 0:00:18]} 34. Bg5 {[%emt 0:00:05]} Rf8 {[%emt 0:00:26]} 35. Rf1 {[%emt 0:00:45]} Qe2+ {[%emt 0:00:06]} 0-1

[Event "55th Rubinstein Memorial-A 2019"]
[Site "Polanica-Zdroj"]
[Date "2019.08.21"]
[Round "5.23"]
[White "Jedynak, January"]
[Black "Czarniecka, Aleksandra"]
[Result "0-1"]
[ECO "B52"]
[WhiteElo "1822"]
[BlackElo "2042"]
[Annotator "NA"]
[PlyCount "120"]
[EventDate "2019.08.17"]
[EventType "swiss"]
[EventCountry "POL"]
[SourceTitle "playchess.com"]
[Source "ChessBase"]
[SourceQuality "1"]
[TimeControl "40/5400+30:1800+30"]

1. e4 c5 2. Nf3 d6 3. Bb5+ Bd7 4. Bxd7+ Qxd7 5. c4 Nc6 6. Nc3 g6 7. d4 cxd4 8. Nxd4 Bg7 9. Be3 Nf6 10. f3 O-O 11. O-O a6 12. a4 e6 13. Rc1 Ne5 14. b3 Qc7 15. Qd2 Nfd7 16. Rfd1 Nc5 17. Rb1 Rfd8 18. h3 b6 19. f4 Nc6 20. f5 Ne5 21. Qf2 Qe7 22. Kh1 Rac8 23. Rf1 Ncd7 24. Rbd1 h6 25. Qd2 Kh7 26. Nde2 Nc5 27. Nd4 Nxb3 28. Nxb3 Nxc4 29. Nd5 Nxd2 30. Nxe7 Nxf1 31. Nxc8 Nxe3 32. Rc1 gxf5 33. exf5 Nxf5 34. Nxb6 Ng3+ 35. Kh2 Be5 36. Rc6 d5 37. Nc5 Ne2+ 38. Kh1 Nd4 39. Rc8 Rxc8 40. Nxc8 a5 41. Nb7 Bc7 42. Kg1 Nc6 43. Kf2 Kg6 44. Ke3 f5 45. Nc5 d4+ 46. Kd3 e5 47. Kc4 e4 48. Kb5 d3 49. Nb3 Nd4+ 50. Nxd4 d2 51. Ne7+ Kf7 52. Nexf5 d1=Q 53. Nxh6+ Kg6 54. Nhf5 Be5 55. Ne7+ Kf7 56. Ndc6 e3 57. Kxa5 e2 58. Nxe5+ Kxe7 59. Nf3 e1=Q+ 60. Nxe1 Qxe1+ 0-1

[Event "55th Rubinstein Memorial-A 2019"]
[Site "Polanica-Zdroj"]
[Date "2019.08.21"]
[Round "5.24"]
[White "Betkowski, Andrzej"]
[Black "Pluta, Natalia"]
[Result "1-0"]
[ECO "D00"]
[WhiteElo "2023"]
[BlackElo "1808"]
[Annotator "NA"]
[PlyCount "105"]
[EventDate "2019.08.17"]
[EventType "swiss"]
[EventCountry "POL"]
[SourceTitle "playchess.com"]
[Source "ChessBase"]
[SourceQuality "1"]
[TimeControl "40/5400+30:1800+30"]

1. d4 {[%emt 0:00:00]} d5 {[%emt 0:04:10]} 2. Bf4 {[%emt 0:00:03]} Nf6 {[%emt 0:00:26]} 3. e3 {[%emt 0:00:12]} c5 {[%emt 0:02:05]} 4. c3 {[%emt 0:00:17]} Nc6 {[%emt 0:00:35]} 5. Nd2 {[%emt 0:01:03]} Bg4 {[%emt 0:00:50]} 6. Ngf3 {[%emt 0:04:38]} e6 {[%emt 0:00:23]} 7. Qb3 {[%emt 0:04:02]} Qb6 {[%emt 0:02:35]} 8. Be2 {[%emt 0:04:42]} Be7 {[%emt 0:00:48]} 9. h3 {[%emt 0:02:43]} Bh5 {[%emt 0:00:53]} 10. g4 {[%emt 0:04:18]} Bg6 {[%emt 0:00:08]} 11. Ne5 {[%emt 0:07:11]} O-O {[%emt 0:08:10]} 12. h4 {[%emt 0:14:51]} Qxb3 {[%emt 0:02:56]} 13. axb3 {[%emt 0:01:41]} cxd4 {[%emt 0:09:11]} 14. exd4 {[%emt 0:05:42]} h6 {[%emt 0:01:26]} 15. g5 {[%emt 0:08:12]} hxg5 {[%emt 0:03:37]} 16. hxg5 {[%emt 0:02:55]} Ne4 {[%emt 0:02:45]} 17. Nxg6 {[%emt 0:11:54]} fxg6 {[%emt 0:00:09]} 18. Bg4 {[%emt 0:02:36]} Nd8 {[%emt 0:02:51]} 19. Be3 {[%emt 0:06:19]} Nxg5 {[%emt 0:01:35]} 20. Ke2 {[%emt 0:01:22]} Ndf7 {[%emt 0:02:13]} 21. f4 {[%emt 0:02:27]} Nh6 {[%emt 0:02:35]} 22. Rxh6 {[%emt 0:00:30]} gxh6 {[%emt 0:00:06]} 23. fxg5 {[%emt 0:00:07]} Rae8 {[%emt 0:10:52]} 24. gxh6 {[%emt 0:01:04]} a6 {[%emt 0:00:49]} 25. Bxe6+ {[%emt 0:03:55]} Kh7 {[%emt 0:00:16]} 26. Bxd5 {[%emt 0:00:08]} Bg5 {[%emt 0:04:04]} 27. Ne4 {[%emt 0:00:36]} Bxe3 {[%emt 0:02:18]} 28. Kxe3 {[%emt 0:00:02]} Re7 {[%emt 0:00:11]} 29. Rh1 {[%emt 0:02:32]} Rf5 {[%emt 0:00:10]} 30. c4 {[%emt 0:00:19]} Rh5 {[%emt 0:00:31]} 31. Rxh5 {[%emt 0:01:07]} gxh5 {[%emt 0:00:04]} 32. Kf4 {[%emt 0:00:18]} Kxh6 {[%emt 0:03:37]} 33. Nd6 {[%emt 0:00:29]} Re2 {[%emt 0:01:42]} 34. Bxb7 {[%emt 0:03:04]} Rxb2 {[%emt 0:07:17]} 35. c5 {[%emt 0:01:23]} h4 {[%emt 0:06:53]} 36. Nf5+ {[%emt 0:01:10]} Kg6 {[%emt 0:04:49]} 37. Nxh4+ {[%emt 0:00:07]} Kf6 {[%emt 0:00:03]} 38. c6 {[%emt 0:01:38]} Rf2+ {[%emt 0:03:19]} 39. Nf3 {[%emt 0:01:15]} Rc2 {[%emt 0:00:29]} 40. d5 {[%emt 0:00:00]} Ke7 {[%emt 0:00:00]} 41. Bxa6 {[%emt 0:01:48]} Kd6 {[%emt 0:02:33]} 42. Bc4 {[%emt 0:00:20]} Rf2 {[%emt 0:00:55]} 43. Ke4 {[%emt 0:00:55]} Rg2 {[%emt 0:01:08]} 44. Nd4 {[%emt 0:00:36]} Rg4+ {[%emt 0:00:31]} 45. Kd3 {[%emt 0:00:24]} Rg3+ {[%emt 0:00:59]} 46. Kc2 {[%emt 0:00:38]} Kc7 {[%emt 0:00:57]} 47. Nb5+ {[%emt 0:00:47]} Kb6 {[%emt 0:02:09]} 48. c7 {[%emt 0:00:19]} Rg2+ {[%emt 0:01:48]} 49. Kc3 {[%emt 0:00:22]} Rg3+ {[%emt 0:00:15]} 50. Kb4 {[%emt 0:00:14]} Rg8 {[%emt 0:01:04]} 51. d6 {[%emt 0:00:25]} Ra8 {[%emt 0:01:30]} 52. d7 {[%emt 0:00:21]} Rh8 {[%emt 0:00:46]} 53. d8=Q 1-0

[Event "55th Rubinstein Memorial-A 2019"]
[Site "Polanica-Zdroj"]
[Date "2019.08.21"]
[Round "5.26"]
[White "Kacprzak, Karol"]
[Black "Goraj, Barbara"]
[Result "0-1"]
[ECO "B88"]
[WhiteElo "1973"]
[BlackElo "1800"]
[Annotator "NA"]
[PlyCount "76"]
[EventDate "2019.08.17"]
[EventType "swiss"]
[EventCountry "POL"]
[SourceTitle "playchess.com"]
[Source "ChessBase"]
[SourceQuality "1"]
[TimeControl "40/5400+30:1800+30"]

1. e4 {[%emt 0:00:00]} c5 {[%emt 0:00:00]} 2. Nf3 {[%emt 0:00:00]} d6 {[%emt 0:00:00]} 3. d4 {[%emt 0:00:00]} cxd4 {[%emt 0:00:00]} 4. Nxd4 {[%emt 0:00:00]} Nf6 {[%emt 0:00:03]} 5. Nc3 {[%emt 0:00:09]} Nc6 {[%emt 0:00:09]} 6. Bc4 {[%emt 0:00:03]} e6 {[%emt 0:00:33]} 7. Bb3 {[%emt 0:00:24]} a6 {[%emt 0:00:35]} 8. f4 {[%emt 0:00:40]} Qc7 {[%emt 0:06:14]} 9. Be3 {[%emt 0:00:09]} b5 {[%emt 0:06:53]} 10. a3 {[%emt 0:03:25]} Na5 {[%emt 0:08:20]} 11. Qe2 {[%emt 0:16:43]} Nxb3 {[%emt 0:02:21]} 12. Nxb3 {[%emt 0:00:30]} Bb7 {[%emt 0:01:04]} 13. Bd4 {[%emt 0:01:56]} Rc8 {[%emt 0:06:21]} 14. O-O-O {[%emt 0:16:29]} Be7 {[%emt 0:16:19]} 15. Kb1 {[%emt 0:04:53]} O-O {[%emt 0:06:55]} 16. Rhe1 {[%emt 0:07:22]} Ba8 {[%emt 0:08:25]} 17. f5 {[%emt 0:10:03]} e5 {[%emt 0:01:27]} 18. Bf2 {[%emt 0:01:09]} Qb8 {[%emt 0:09:30]} 19. g4 {[%emt 0:02:42]} Rxc3 {[%emt 0:01:33]} 20. bxc3 {[%emt 0:00:51]} Nxe4 {[%emt 0:00:10]} 21. Kb2 {[%emt 0:02:35]} Rc8 {[%emt 0:00:24]} 22. Rd3 {[%emt 0:01:17]} Qc7 {[%emt 0:00:49]} 23. Qe3 {[%emt 0:03:20]} Bg5 {[%emt 0:07:13]} 24. Qb6 {[%emt 0:01:52]} Nxf2 {[%emt 0:01:09]} 25. Qxf2 {[%emt 0:00:06]} a5 {[%emt 0:02:35]} 26. h4 {[%emt 0:04:32]} Bf4 {[%emt 0:00:23]} 27. Qe2 {[%emt 0:05:37]} Kf8 {[%emt 0:03:09]} 28. g5 {[%emt 0:00:34]} e4 {[%emt 0:00:49]} 29. Rh3 {[%emt 0:00:57]} Be5 {[%emt 0:01:09]} 30. Kb1 {[%emt 0:03:38]} Bxc3 {[%emt 0:00:43]} 31. Rd1 {[%emt 0:00:06]} a4 {[%emt 0:01:49]} 32. Nd2 {[%emt 0:04:06]} d5 {[%emt 0:01:22]} 33. f6 {[%emt 0:01:16]} b4 {[%emt 0:01:24]} 34. fxg7+ {[%emt 0:00:13]} Bxg7 {[%emt 0:00:13]} 35. Nf1 {[%emt 0:04:47]} Qe5 {[%emt 0:00:29]} 36. c3 {[%emt 0:00:18]} Rxc3 {[%emt 0:02:16]} 37. Rxc3 {[%emt 0:00:22]} Qxc3 {[%emt 0:00:05]} 38. Qa2 {[%emt 0:00:19]} b3 {[%emt 0:00:10]} 0-1

[Event "55th Rubinstein Memorial-A 2019"]
[Site "Polanica-Zdroj"]
[Date "2019.08.21"]
[Round "5.27"]
[White "Galant, Ireneusz"]
[Black "Rosol, Alexander"]
[Result "1/2-1/2"]
[ECO "A41"]
[WhiteElo "1774"]
[BlackElo "1968"]
[Annotator "NA"]
[PlyCount "69"]
[EventDate "2019.08.17"]
[EventType "swiss"]
[EventCountry "POL"]
[SourceTitle "playchess.com"]
[Source "ChessBase"]
[SourceQuality "1"]
[TimeControl "40/5400+30:1800+30"]

1. d4 {[%emt 0:00:00]} d6 {[%emt 0:00:00]} 2. Bf4 {[%emt 0:02:17]} Nf6 {[%emt 0:00:22]} 3. Nc3 {[%emt 0:00:45]} g6 {[%emt 0:02:11]} 4. e3 {[%emt 0:00:43]} Bg7 {[%emt 0:01:08]} 5. Be2 {[%emt 0:03:15]} Nbd7 {[%emt 0:02:07]} 6. Nf3 {[%emt 0:05:18]} c6 {[%emt 0:01:49]} 7. Qd2 {[%emt 0:04:46]} Qa5 {[%emt 0:04:39]} 8. Ne4 {[%emt 0:06:55]} Qc7 {[%emt 0:04:16]} 9. Nxf6+ {[%emt 0:01:32]} Nxf6 {[%emt 0:00:15]} 10. Bd3 {[%emt 0:04:09]} Nh5 {[%emt 0:04:11]} 11. Bg3 {[%emt 0:02:53]} O-O {[%emt 0:04:30]} 12. O-O-O {[%emt 0:18:23]} b5 {[%emt 0:04:25]} 13. Kb1 {[%emt 0:01:05]} a5 {[%emt 0:01:43]} 14. h3 {[%emt 0:00:29]} Nxg3 {[%emt 0:01:35]} 15. fxg3 {[%emt 0:00:01]} b4 {[%emt 0:05:54]} 16. g4 {[%emt 0:02:38]} c5 {[%emt 0:03:28]} 17. dxc5 {[%emt 0:02:21]} dxc5 {[%emt 0:05:50]} 18. Bc4 {[%emt 0:02:16]} a4 {[%emt 0:02:40]} 19. Rhf1 {[%emt 0:20:19]} h6 {[%emt 0:24:17]} 20. Qd3 {[%emt 0:03:38]} Kh7 {[%emt 0:02:36]} 21. g5 {[%emt 0:03:26]} Bf5 {[%emt 0:12:13]} 22. e4 {[%emt 0:00:56]} Rad8 {[%emt 0:00:52]} 23. Qe2 {[%emt 0:00:42]} Be6 {[%emt 0:01:54]} 24. gxh6 {[%emt 0:06:47]} Bxh6 {[%emt 0:02:25]} 25. Bxe6 {[%emt 0:02:05]} fxe6 {[%emt 0:00:01]} 26. h4 {[%emt 0:01:16]} c4 {[%emt 0:02:56]} 27. Rxd8 {[%emt 0:00:47]} Rxd8 {[%emt 0:00:12]} 28. Ng5+ {[%emt 0:00:35]} Bxg5 {[%emt 0:00:08]} 29. hxg5 {[%emt 0:00:09]} Qd7 {[%emt 0:03:34]} 30. Qf3 {[%emt 0:00:27]} Kh8 {[%emt 0:01:24]} 31. Qh3+ {[%emt 0:02:06]} Kg8 {[%emt 0:00:02]} 32. Qf3 {[%emt 0:00:21]} Kh8 {[%emt 0:00:27]} 33. Qh3+ {[%emt 0:00:39]} Kg8 {[%emt 0:00:02]} 34. Qf3 {[%emt 0:00:17]} Kh8 {[%emt 0:02:09]} 35. Qh3+ {[%emt 0:01:22]} 1/2-1/2